bitfinex/quotes_BTCUSD_20251117
["timestamp","ask_amount","ask_price","bid_price","bid_amount"]
[1763418469916,0.03259454,92404.0,92403.0,0.06891]
[1763418472394,1.33323196,92413.0,92403.0,0.06891]
[1763418472599,0.03259454,92405.0,92403.0,0.06904121]
[1763418472803,0.03259454,92405.0,92404.0,0.0171915]
[1763418473661,0.03259454,92405.0,92404.0,0.0548715]
[1763418473862,0.03259454,92405.0,92404.0,0.1159615]
[1763418474594,0.77520894,92414.0,92404.0,0.12894795]
[1763418474595,0.66661598,92414.0,92404.0,0.12894795]
[1763418474788,0.66661598,92414.0,92413.0,0.03768]
[1763418474994,0.66661598,92423.0,92413.0,0.03768]
[1763418475195,1.33323196,92423.0,92414.0,0.07407504]
[1763418475433,0.03826139,92429.0,92422.0,0.06891]
[1763418475653,0.00567404,92429.0,92428.0,0.03768]
[1763418477331,0.00567404,92429.0,92428.0,0.03868]
[1763418478173,0.03825891,92429.0,92428.0,0.03868]
[1763418479659,0.00567404,92429.0,92428.0,0.09514]
[1763418479839,0.00567404,92429.0,92428.0,0.10976446]
[1763418481949,0.00567404,92429.0,92428.0,0.05330446]
[1763418482353,0.01540901,92429.0,92428.0,0.001]
[1763418482566,0.04799813,92429.0,92428.0,0.001]
[1763418482946,0.06827982,92429.0,92428.0,0.001]
[1763418483163,0.06827982,92429.0,92403.0,0.03136121]
[1763418483365,0.6662431,92413.0,92404.0,0.05646]
[1763418483563,0.6662431,92413.0,92405.0,0.01190512]
[1763418484090,0.69883257,92413.0,92405.0,0.01190512]
[1763418486158,0.323,92412.0,92405.0,0.01290512]
[1763418486985,0.323,92412.0,92405.0,0.01190512]
[1763418487384,0.323,92412.0,92405.0,0.01290512]
[1763418487656,0.323,92412.0,92406.0,0.01319563]
[1763418489033,0.69883257,92413.0,92406.0,0.01419563]
[1763418489457,0.69883257,92413.0,92406.0,0.07065563]
[1763418490111,0.69883257,92413.0,92406.0,0.06965563]
[1763418490320,0.69883257,92413.0,92406.0,0.07065563]
[1763418490526,0.69883257,92413.0,92407.0,0.01020168]
[1763418491310,0.69883257,92413.0,92412.0,0.03899]
[1763418491553,0.03258947,92413.0,92412.0,0.03899]
[1763418491776,0.03258947,92413.0,92412.0,0.09545]
[1763418492951,0.03178947,92413.0,92412.0,0.09545]
[1763418493182,0.03178947,92413.0,92412.0,0.10611517]
[1763418493419,0.6662431,92422.0,92412.0,0.10611517]
[1763418493649,0.03258947,92421.0,92413.0,0.08409]
[1763418493883,0.1509174,92421.0,92412.0,0.001]
[1763418495301,0.1509174,92421.0,92406.0,0.05646]
[1763418495501,0.1509174,92421.0,92412.0,0.001]
[1763418496135,0.1509174,92421.0,92420.0,0.03899]
[1763418496498,0.1509174,92421.0,92420.0,0.09545]
[1763418496927,0.09736985,92507.0,92412.0,0.001]
[1763418496928,0.02930477,92462.0,92421.0,0.10942374]
[1763418497121,0.02930477,92462.0,92407.0,0.00842212]
[1763418497122,0.6662431,92460.0,92444.0,0.0151]
[1763418497326,0.6662431,92454.0,92444.0,0.0151]
[1763418497524,0.6662431,92454.0,92428.0,0.02763]
[1763418497737,0.6662431,92438.0,92436.0,0.02763]
[1763418497939,0.6662431,92446.0,92436.0,0.02763]
[1763418498143,0.6662431,92446.0,92445.0,0.06373]
[1763418498341,4.372e-05,92446.0,92445.0,0.06373]
[1763418498546,4.372e-05,92446.0,92445.0,0.11931]
[1763418498771,4.372e-05,92446.0,92445.0,0.131241]
[1763418502547,4.372e-05,92446.0,92445.0,0.132241]
[1763418503094,4.372e-05,92446.0,92445.0,0.14522169]
[1763418503454,4.372e-05,92446.0,92445.0,0.12031]
[1763418503671,0.49538052,92460.0,92459.0,0.03617]
[1763418503852,4.37e-05,92460.0,92459.0,0.03617]
[1763418504047,4.37e-05,92460.0,92459.0,0.09175]
[1763418505178,4.37e-05,92460.0,92459.0,0.03617]
[1763418505395,4.37e-05,92460.0,92449.0,0.05558]
[1763418505609,0.6662431,92459.0,92450.0,0.008314]
[1763418507509,0.6662431,92459.0,92450.0,0.063894]
[1763418508267,0.6662431,92459.0,92458.0,0.02756]
[1763418508962,4.37e-05,92460.0,92458.0,0.02756]
[1763418509918,4.37e-05,92460.0,92445.0,0.02756]
[1763418510180,0.14465296,92451.0,92435.0,0.05642]
[1763418510412,0.14465296,92451.0,92429.0,0.0066475]
[1763418510413,0.14465296,92451.0,92436.0,0.03669975]
[1763418510657,0.14465296,92451.0,92436.0,0.08405]
[1763418511133,0.14465296,92451.0,92437.0,0.05642]
[1763418512110,0.6662431,92447.0,92437.0,0.05642]
[1763418512933,0.6662431,92447.0,92446.0,0.06627]
[1763418513187,0.02137,92458.0,92446.0,0.06627]
[1763418513475,0.10859296,92451.0,92447.0,0.006627]
[1763418513817,0.6662431,92457.0,92450.0,0.03815]
[1763418514045,0.6662431,92457.0,92448.0,0.05642]
[1763418514245,0.6662431,92457.0,92456.0,0.06627]
[1763418515073,4.37e-05,92460.0,92456.0,0.06627]
[1763418516170,4.37e-05,92460.0,92457.0,0.05642]
[1763418516365,4.37e-05,92460.0,92456.0,0.06627]
[1763418516576,4.37e-05,92460.0,92456.0,0.078539]
[1763418517045,4.37e-05,92460.0,92459.0,0.03815]
[1763418517384,4.37e-05,92460.0,92459.0,0.09457]
[1763418517762,4.37e-05,92460.0,92459.0,0.03815]
[1763418517992,4.37e-05,92460.0,92459.0,0.09457]
[1763418519375,0.48828157,92466.0,92459.0,0.106839]
[1763418519577,0.48871865,92466.0,92460.0,0.03815]
[1763418519981,0.00043708,92466.0,92460.0,0.03815]
[1763418520193,0.00043708,92466.0,92461.0,0.02812]
[1763418521771,0.00043708,92466.0,92462.0,0.0124929]
[1763418522282,0.00043708,92466.0,92462.0,0.0689129]
[1763418522903,0.00043708,92466.0,92462.0,0.05642]
[1763418523836,0.00043708,92466.0,92465.0,0.03815]
[1763418523976,0.02071761,92466.0,92461.0,0.02812]
[1763418524189,0.020293,92465.0,92461.0,0.08454]
[1763418524386,0.020293,92464.0,92461.0,0.08454]
[1763418524589,0.00043708,92466.0,92461.0,0.08454]
[1763418524803,0.02029299,92465.0,92462.0,0.05642]
[1763418525010,0.02029299,92464.0,92462.0,0.05642]
[1763418525225,0.02030925,92463.0,92462.0,0.05642]
[1763418525664,0.02030925,92463.0,92462.0,0.09457]
[1763418526510,0.02030925,92463.0,92462.0,0.03815]
[1763418530484,0.02030925,92463.0,92462.0,0.109651]
[1763418531540,0.00043708,92466.0,92462.0,0.109651]
[1763418531892,0.00043708,92466.0,92465.0,0.06627]
[1763418532317,0.00043708,92466.0,92465.0,0.12269]
[1763418532516,0.00043708,92466.0,92465.0,0.13566788]
[1763418532715,0.00043708,92466.0,92465.0,0.16324668]
[1763418533921,0.00043708,92466.0,92465.0,0.20209167]
[1763418534120,0.00043708,92466.0,92465.0,0.16324668]
[1763418535051,0.00043708,92466.0,92465.0,0.1502688]
[1763418535181,0.00043708,92466.0,92465.0,0.16324668]
[1763418535638,0.00043708,92466.0,92465.0,0.16424668]
[1763418536045,0.00043708,92466.0,92465.0,0.16324668]
[1763418536221,0.00043708,92466.0,92465.0,0.1502688]
[1763418536403,0.00043708,92466.0,92465.0,0.16424668]
[1763418537005,0.00043708,92466.0,92465.0,0.1512688]
[1763418537674,0.00043708,92466.0,92465.0,0.1502688]
[1763418538068,0.00043708,92466.0,92465.0,0.1512688]
[1763418538504,0.00043708,92466.0,92465.0,0.1502688]
[1763418539261,0.00043708,92466.0,92465.0,0.1512688]
[1763418540177,0.00043708,92466.0,92465.0,0.12369]
[1763418540561,0.00043708,92466.0,92465.0,0.12269]
[1763418540835,0.00043708,92466.0,92465.0,0.12369]
[1763418542006,0.00043708,92466.0,92465.0,0.06727]
[1763418542207,0.00043708,92466.0,92465.0,0.126976]
[1763418542338,0.00043708,92466.0,92465.0,0.08803]
[1763418543920,0.0055602,92467.0,92466.0,0.03642]
[1763418544874,0.0055602,92467.0,92466.0,0.08703]
[1763418545071,0.0055602,92467.0,92466.0,0.08803]
[1763418547162,0.01514075,92482.0,92467.0,0.07497]
[1763418547364,0.66535373,92476.0,92467.0,0.07497]
[1763418548533,0.66535373,92480.0,92475.0,0.03642]
[1763418548748,0.01514075,92482.0,92479.0,0.06307]
[1763418548979,1.33070746,92489.0,92481.0,0.03642]
[1763418549143,0.10859296,92483.0,92481.0,0.03642]
[1763418551058,0.12368527,92483.0,92481.0,0.03642]
[1763418552547,0.01509231,92483.0,92482.0,0.08703]
[1763418552805,0.66535373,92492.0,92482.0,0.08703]
[1763418553012,0.02052478,92486.0,92485.0,0.06307]
[1763418553222,0.00567254,92486.0,92485.0,0.11368]
[1763418555468,0.02048402,92486.0,92485.0,0.11368]
[1763418555672,0.02048402,92486.0,92485.0,0.1288498]
[1763418556840,0.02048402,92486.0,92478.0,0.038919]
[1763418556841,0.07616402,92486.0,92478.0,0.038919]
[1763418557227,0.10859296,92479.0,92476.0,0.02665]
[1763418558424,0.03987402,92486.0,92478.0,0.03506]
[1763418558566,0.10859296,92479.0,92478.0,0.03506]
[1763418558907,0.10859296,92479.0,92476.0,0.02665]
[1763418559052,0.10859296,92479.0,92476.0,0.0747]
[1763418559453,0.10859296,92479.0,92477.0,0.00747]
[1763418559882,0.10859296,92479.0,92478.0,0.03506]
[1763418561231,0.10859296,92479.0,92478.0,0.08311]
[1763418561646,0.10859296,92479.0,92478.0,0.03506]
[1763418562602,0.10859296,92479.0,92478.0,0.08311]
[1763418562813,0.10859296,92479.0,92478.0,0.03506]
[1763418563012,0.10859296,92479.0,92478.0,0.08311]
[1763418564164,0.01481148,92486.0,92478.0,0.0979779]
[1763418564366,0.01481148,92486.0,92485.0,0.03506]
[1763418564518,0.01546,92494.0,92485.0,0.03506]
[1763418564736,0.02033325,92489.0,92485.0,0.03549662]
[1763418564937,0.51546,92494.0,92485.0,0.03482518]
[1763418564938,0.01546,92494.0,92485.0,0.03482518]
[1763418565143,0.02033322,92489.0,92485.0,0.08287518]
[1763418565512,0.51939,92499.0,92489.0,0.05907]
[1763418565691,0.66535373,92495.0,92489.0,0.05907]
[1763418567234,0.51939,92499.0,92489.0,0.05907]
[1763418567439,0.51939,92499.0,92489.0,0.10712]
[1763418567863,0.0141282,92490.0,92489.0,0.05907]
[1763418568843,0.0141282,92490.0,92489.0,0.02401]
[1763418573845,0.10859296,92490.0,92489.0,0.02401]
[1763418575161,0.12250833,92490.0,92489.0,0.02401]
[1763418575371,0.10859296,92490.0,92489.0,0.10617]
[1763418581446,0.00567225,92493.0,92489.0,0.10617]
[1763418581661,0.00567225,92493.0,92492.0,0.03376]
[1763418581876,0.00567225,92493.0,92492.0,0.09282066]
[1763418587434,0.5054694,92502.0,92501.0,0.03376]
[1763418587607,0.01455334,92507.0,92501.0,0.03376]
[1763418587814,0.01455334,92507.0,92506.0,0.05987]
[1763418588032,2.0,92509.0,92506.0,0.05987]
[1763418588199,1.78627932,92509.0,92508.0,0.03376]
[1763418588407,0.0002,92510.0,92508.0,0.03376]
[1763418588575,0.0002,92510.0,92508.0,0.08216]
[1763418589798,0.01417776,92510.0,92509.0,0.02611]
[1763418591416,0.51293,92518.0,92509.0,0.02611]
[1763418591417,9e-05,92518.0,92509.0,0.118332]
[1763418591639,9e-05,92518.0,92517.0,0.05987]
[1763418592043,9e-05,92518.0,92513.0,0.02611]
[1763418592787,9e-05,92518.0,92513.0,0.02654662]
[1763418593309,0.00109,92518.0,92513.0,0.02654662]
[1763418593487,9e-05,92518.0,92513.0,0.02654662]
[1763418593891,0.10859296,92514.0,92513.0,0.02654662]
[1763418594287,0.10859296,92514.0,92513.0,0.10870662]
[1763418603638,0.21831844,92514.0,92513.0,0.00043662]
[1763418603827,2.23862415,92514.0,92513.0,0.00043662]
[1763418604028,2.30815289,92514.0,92513.0,0.00043662]
[1763418604232,2.31830785,92514.0,92513.0,0.00043662]
[1763418605270,2.31893715,92514.0,92513.0,0.00043662]
[1763418605473,2.12450702,92514.0,92513.0,0.00043662]
[1763418605643,2.12387772,92514.0,92513.0,0.00043662]
[1763418608082,2.12487772,92514.0,92513.0,0.00043662]
[1763418608285,2.12487899,92514.0,92513.0,0.00043662]
[1763418608761,2.12387899,92514.0,92513.0,0.00043662]
[1763418608959,2.12487899,92514.0,92513.0,0.00043662]
[1763418609504,2.12387899,92514.0,92513.0,0.00043662]
[1763418609700,2.09999068,92514.0,92513.0,0.00043662]
[1763418609919,2.10099068,92514.0,92513.0,0.00043662]
[1763418610947,2.12804807,92514.0,92513.0,0.00043662]
[1763418611743,2.10099068,92514.0,92513.0,0.00043662]
[1763418612644,2.09999068,92514.0,92513.0,0.00043662]
[1763418612886,2.09999068,92514.0,92476.0,0.07205]
[1763418612887,2.0,92506.0,92476.0,0.07205]
[1763418613096,0.10859296,92477.0,92476.0,0.08203087]
[1763418613337,0.10859296,92477.0,92476.0,0.07248787]
[1763418613568,0.10859296,92477.0,92476.0,0.02381787]
[1763418615257,0.10859296,92477.0,92476.0,0.02481787]
[1763418616847,0.10859296,92477.0,92476.0,0.00143787]
[1763418616848,2.10859296,92477.0,92476.0,0.00143787]
[1763418617064,2.10859296,92477.0,92476.0,0.00043787]
[1763418627237,2.1288514,92477.0,92476.0,0.00043787]
[1763418629879,0.1288514,92477.0,92476.0,0.07739787]
[1763418630643,0.10859296,92477.0,92476.0,0.07739787]
[1763418632274,0.12888904,92477.0,92476.0,0.07739787]
[1763418632499,2.12888904,92477.0,92476.0,0.00043787]
[1763418635081,2.12888904,92477.0,92476.0,0.07739787]
[1763418636379,0.02029608,92477.0,92476.0,0.08756666]
[1763418636566,0.66501145,92486.0,92476.0,0.07739787]
[1763418636808,0.66501145,92486.0,92485.0,0.03047]
[1763418637022,2.02032797,92486.0,92485.0,0.05476]
[1763418637233,0.02032797,92486.0,92485.0,0.10125]
[1763418637866,2.02032797,92486.0,92476.0,0.00143787]
[1763418638057,0.10859296,92477.0,92476.0,0.00043787]
[1763418638215,0.12892093,92477.0,92476.0,0.00043787]
[1763418638420,0.12892093,92477.0,92476.0,0.07839787]
[1763418638831,0.12892093,92477.0,92476.0,0.07739787]
[1763418639252,0.12892607,92477.0,92476.0,0.07839787]
[1763418639844,0.12892607,92477.0,92476.0,0.08866666]
[1763418640459,0.02033311,92477.0,92476.0,0.08866666]
[1763418640659,0.02033311,92477.0,92476.0,0.07839787]
[1763418640907,0.47019826,92486.0,92476.0,0.07839787]
[1763418641116,0.47019826,92486.0,92485.0,0.02429]
[1763418641357,2.0,92488.0,92485.0,0.02429]
[1763418642077,2.0,92488.0,92477.0,0.04649]
[1763418642292,2.0,92488.0,92477.0,0.05361179]
[1763418642506,2.0,92486.0,92477.0,0.05361179]
[1763418642741,1.78564835,92486.0,92477.0,0.05361179]
[1763418642946,2.0,92486.0,92477.0,0.05361179]
[1763418643151,0.03256899,92485.0,92477.0,0.05361179]
[1763418643932,0.03256899,92485.0,92484.0,0.03047]
[1763418644601,2.0,92490.0,92484.0,0.03047]
[1763418644773,2.0,92490.0,92485.0,0.02429]
[1763418645012,2.0,92489.0,92485.0,0.02429]
[1763418646198,2.0,92489.0,92488.0,0.03047]
[1763418646408,2.0,92489.0,92485.0,0.02429]
[1763418646857,2.0,92489.0,92488.0,0.03047]
[1763418647908,2.00567175,92489.0,92488.0,0.02479825]
[1763418648355,2.0,92488.0,92485.0,0.02429]
[1763418648565,0.03047,92490.0,92476.0,0.00043787]
[1763418648566,2.0,92489.0,92476.0,0.00043787]
[1763418648778,0.10859296,92477.0,92476.0,0.00043787]
[1763418649407,0.14116623,92477.0,92476.0,0.00043787]
[1763418652953,0.16149893,92477.0,92476.0,0.00043787]
[1763418654771,2.16149893,92477.0,92476.0,0.00043787]
[1763418657507,2.16149893,92477.0,92476.0,0.07739787]
[1763418658443,2.16149893,92477.0,92456.0,0.02429]
[1763418658444,2.0,92476.0,92460.0,0.02429]
[1763418658654,0.17166874,92477.0,92460.0,0.02429]
[1763418658655,0.10859296,92461.0,92460.0,0.02472878]
[1763418659115,0.12893382,92461.0,92460.0,0.05519878]
[1763418659331,0.14116976,92461.0,92460.0,0.05519878]
[1763418659541,0.16150656,92461.0,92460.0,0.00043878]
[1763418659747,0.16150656,92461.0,92460.0,0.03090878]
[1763418660185,0.16150656,92461.0,92460.0,0.00043878]
[1763418660609,0.16150656,92461.0,92460.0,0.00143878]
[1763418660835,0.16150656,92461.0,92460.0,0.08966736]
[1763418660836,0.0203368,92461.0,92460.0,0.08966736]
[1763418661065,0.10859296,92469.0,92460.0,0.1034921]
[1763418661284,0.02429,92467.0,92461.0,0.04623]
[1763418661517,0.02429,92467.0,92462.0,0.0129783]
[1763418661801,0.10859296,92469.0,92462.0,0.0129783]
[1763418662040,0.10859296,92469.0,92468.0,0.05286]
[1763418662315,0.14116524,92469.0,92468.0,0.09909]
[1763418662585,1.33106794,92480.0,92468.0,0.09909]
[1763418662586,1.33106794,92480.0,92468.0,0.11029683]
[1763418662823,1.33106794,92480.0,92479.0,0.05286]
[1763418663024,0.03256899,92482.0,92479.0,0.05286]
[1763418663236,0.66553397,92489.0,92481.0,0.03002]
[1763418663442,0.66553397,92489.0,92487.0,0.05286]
[1763418663613,0.03256581,92490.0,92487.0,0.05286]
[1763418663817,0.77412693,92497.0,92487.0,0.09909]
[1763418664038,0.03256581,92491.0,92487.0,0.09909]
[1763418665877,0.03256581,92491.0,92487.0,0.03102]
[1763418666217,0.03256581,92491.0,92487.0,0.07825]
[1763418666835,0.03256581,92491.0,92487.0,0.07625]
[1763418667598,0.03256581,92491.0,92487.0,0.03002]
[1763418667799,0.03256581,92491.0,92483.0,0.02284]
[1763418667800,0.02031886,92490.0,92483.0,0.02284]
[1763418668018,0.02031971,92487.0,92483.0,0.02284]
[1763418668217,0.02031971,92486.0,92483.0,0.02284]
[1763418668466,0.02031971,92485.0,92483.0,0.02284]
[1763418668664,0.03256581,92491.0,92483.0,0.02284]
[1763418668665,0.02031971,92484.0,92483.0,0.02284]
[1763418669035,2.0,92486.0,92483.0,0.02284]
[1763418669244,0.02031971,92485.0,92483.0,0.05286]
[1763418669483,0.02031971,92484.0,92483.0,0.05286]
[1763418669681,0.02031971,92487.0,92483.0,0.05286]
[1763418669881,2.0,92486.0,92483.0,0.06907]
[1763418670111,0.02031971,92485.0,92483.0,0.06907]
[1763418670453,2.0,92487.0,92484.0,0.04623]
[1763418670655,0.03256581,92491.0,92484.0,0.07625]
[1763418670656,2.0,92485.0,92484.0,0.07625]
[1763418670861,0.02032064,92485.0,92484.0,0.07625]
[1763418671355,0.05288645,92485.0,92484.0,0.07625]
[1763418681342,2.05288645,92485.0,92484.0,0.07625]
[1763418681997,1.88705271,92487.0,92484.0,0.07625]
[1763418682303,1.88705271,92487.0,92485.0,0.04202]
[1763418682499,0.03257069,92486.0,92485.0,0.04202]
[1763418682707,2.4196234,92486.0,92485.0,0.04202]
[1763418682927,1.9196234,92486.0,92485.0,0.0719]
[1763418684915,1.9196234,92486.0,92485.0,0.09436]
[1763418690784,0.02719677,92504.0,92485.0,0.09436]
[1763418690785,0.04341874,92503.0,92500.0,5.96950952]
[1763418691028,0.1520117,92501.0,92500.0,5.96950952]
[1763418691187,0.16218171,92501.0,92500.0,5.96950952]
[1763418691391,2.11326248,92501.0,92500.0,5.96950952]
[1763418691591,2.11326248,92501.0,92500.0,5.94366993]
[1763418692050,2.14683317,92501.0,92500.0,5.94410871]
[1763418693443,2.14783317,92501.0,92500.0,5.94410871]
[1763418693974,2.16817998,92501.0,92500.0,5.94410871]
[1763418694155,2.16817998,92501.0,92500.0,5.90384606]
[1763418694359,2.16817998,92501.0,92500.0,5.89656015]
[1763418694758,2.16817998,92501.0,92500.0,5.88443476]
[1763418695362,2.16817998,92501.0,92500.0,5.83143051]
[1763418696221,2.16817998,92501.0,92500.0,5.59924726]
[1763418698448,2.16817998,92501.0,92500.0,5.59911524]
[1763418699692,2.16820237,92501.0,92500.0,5.59911524]
[1763418701240,2.1410056,92501.0,92500.0,5.59911524]
[1763418706310,2.17028414,92501.0,92500.0,5.59911524]
[1763418708178,2.16928414,92501.0,92500.0,5.59911524]
[1763418708983,2.16828414,92501.0,92500.0,5.59911524]
[1763418709292,2.16928414,92501.0,92500.0,5.59911524]
[1763418709898,2.16928414,92501.0,92500.0,5.58316842]
[1763418710077,2.1400056,92501.0,92500.0,5.5332883]
[1763418714342,1.93628689,92501.0,92500.0,5.53289256]
[1763418716710,1.94648689,92501.0,92500.0,5.53289256]
[1763418722405,1.95158689,92501.0,92500.0,5.53289256]
[1763418722823,1.733319,92501.0,92500.0,5.53289256]
[1763418723021,1.76588979,92501.0,92500.0,5.53289256]
[1763418724763,1.76078979,92501.0,92500.0,5.53289256]
[1763418724964,1.76588979,92501.0,92500.0,5.53289256]
[1763418726489,1.76078979,92501.0,92500.0,5.53289256]
[1763418726632,1.76588979,92501.0,92500.0,5.53289256]
[1763418727776,1.76078979,92501.0,92500.0,5.53289256]
[1763418728570,1.76078979,92501.0,92500.0,5.61764256]
[1763418728571,1.75568979,92501.0,92500.0,5.61764256]
[1763418728767,1.723119,92501.0,92500.0,5.61764256]
[1763418729556,0.00566552,92502.0,92500.0,5.61764256]
[1763418729743,0.00566552,92502.0,92501.0,0.08475]
[1763418730636,0.00024569,92502.0,92501.0,0.09772283]
[1763418730858,0.50009,92518.0,92501.0,0.09772283]
[1763418731060,0.00566552,92513.0,92512.0,0.02626]
[1763418731265,2.05178452,92513.0,92512.0,0.11101]
[1763418732438,0.43159296,92506.0,92505.0,0.02626]
[1763418732923,0.43159296,92506.0,92505.0,0.05965]
[1763418733152,1.736249,92521.0,92520.0,8.78831396]
[1763418733274,1.73326877,92521.0,92520.0,8.65386981]
[1763418733470,1.73326877,92521.0,92520.0,8.56926008]
[1763418733740,1.73326877,92521.0,92520.0,8.44083514]
[1763418733934,1.76462877,92521.0,92520.0,8.30384701]
[1763418734108,1.76462877,92521.0,92520.0,8.1640592]
[1763418734735,1.78492461,92521.0,92520.0,8.1640592]
[1763418736257,1.75356461,92521.0,92520.0,8.1640592]
[1763418736445,1.74341484,92521.0,92520.0,8.1640592]
[1763418736667,1.77477484,92521.0,92520.0,8.1640592]
[1763418737036,1.80613484,92521.0,92520.0,8.1640592]
[1763418737466,1.74341484,92521.0,92520.0,8.1640592]
[1763418737714,1.80613484,92521.0,92520.0,8.1640592]
[1763418738095,1.81108484,92521.0,92520.0,8.1640592]
[1763418739691,1.77477484,92521.0,92520.0,8.1640592]
[1763418740113,1.8073386,92521.0,92520.0,8.1640592]
[1763418740273,1.77596462,92521.0,92520.0,8.1640592]
[1763418741124,1.58515367,92521.0,92520.0,8.1640592]
[1763418741340,1.58515462,92521.0,92520.0,8.1640592]
[1763418742277,1.68143124,92521.0,92520.0,7.47497935]
[1763418742448,1.69589423,92521.0,92520.0,7.46924097]
[1763418743628,1.69689423,92521.0,92520.0,7.46924097]
[1763418744620,1.66991518,92521.0,92520.0,7.46924097]
[1763418745505,1.58715462,92521.0,92520.0,7.46924097]
[1763418745674,1.58615462,92521.0,92520.0,7.46924097]
[1763418745856,1.58515462,92521.0,92520.0,7.46924097]
[1763418747256,1.397825,92521.0,92520.0,7.46924097]
[1763418747384,1.43038879,92521.0,92520.0,7.46924097]
[1763418748180,1.46679879,92521.0,92520.0,7.46924097]
[1763418748464,1.51522333,92521.0,92520.0,7.46924097]
[1763418748981,1.54320238,92521.0,92520.0,7.46924097]
[1763418750413,1.54420238,92521.0,92520.0,7.46924097]
[1763418750632,1.54520238,92521.0,92520.0,7.46924097]
[1763418750968,1.54420238,92521.0,92520.0,7.46924097]
[1763418751164,1.54520238,92521.0,92520.0,7.46924097]
[1763418756951,1.47894333,92521.0,92520.0,7.46924097]
[1763418757107,1.51722333,92521.0,92520.0,7.46924097]
[1763418757728,1.51622333,92521.0,92520.0,7.46924097]
[1763418757958,1.51522333,92521.0,92520.0,7.46924097]
[1763418759332,1.47694333,92521.0,92520.0,7.46924097]
[1763418761022,1.26934033,92521.0,92520.0,7.46924097]
[1763418761990,1.23293033,92521.0,92520.0,7.46924097]
[1763418763998,1.26896033,92521.0,92520.0,7.46924097]
[1763418764644,1.30724033,92521.0,92520.0,7.46924097]
[1763418765104,1.26896033,92521.0,92520.0,7.46924097]
[1763418766024,1.30724033,92521.0,92520.0,7.46924097]
[1763418766433,1.26896033,92521.0,92520.0,7.46924097]
[1763418767774,1.23293033,92521.0,92520.0,7.46924097]
[1763418769217,1.23293033,92521.0,92520.0,7.56052097]
[1763418769430,1.23293033,92521.0,92520.0,7.50543097]
[1763418769610,1.23293033,92521.0,92520.0,7.46924097]
[1763418771508,1.23293033,92521.0,92520.0,7.50543097]
[1763418771690,1.23293033,92521.0,92520.0,7.56052097]
[1763418774299,1.22278579,92521.0,92520.0,7.56052097]
[1763418778753,1.190222,92521.0,92520.0,7.56052097]
[1763418781258,1.019846,92521.0,92520.0,7.56052097]
[1763418781662,1.019846,92522.0,92520.0,7.56052097]
[1763418781862,1.019846,92522.0,92521.0,0.0541]
[1763418782067,1.04016013,92522.0,92521.0,0.11603]
[1763418784321,1.04016013,92522.0,92520.0,7.46924097]
[1763418784322,1.019846,92521.0,92520.0,7.46924097]
[1763418784523,0.52031413,92521.0,92520.0,7.46924097]
[1763418784734,0.87675413,92521.0,92520.0,7.46924097]
[1763418784924,0.90931683,92521.0,92520.0,7.46924097]
[1763418785695,0.98789209,92521.0,92520.0,7.46924097]
[1763418786378,0.98789209,92521.0,92520.0,7.46897719]
[1763418786553,1.03131083,92521.0,92520.0,7.46897719]
[1763418786786,1.03668725,92521.0,92520.0,7.46897719]
[1763418787181,1.05928988,92521.0,92520.0,7.46897719]
[1763418787410,1.06028988,92521.0,92520.0,7.46897719]
[1763418788101,1.0669554,92521.0,92520.0,7.46331167]
[1763418788385,1.06128988,92521.0,92520.0,7.46331167]
[1763418788591,1.02707988,92521.0,92520.0,7.46331167]
[1763418788806,0.92147209,92521.0,92520.0,7.46331167]
[1763418788970,0.95568209,92521.0,92520.0,7.46331167]
[1763418789353,0.96134761,92521.0,92520.0,7.46331167]
[1763418789562,0.96034761,92521.0,92520.0,7.46331167]
[1763418790370,0.99455761,92521.0,92520.0,7.46331167]
[1763418790612,0.99355761,92521.0,92520.0,7.46331167]
[1763418791405,0.95934761,92521.0,92520.0,7.46331167]
[1763418791605,0.99355761,92521.0,92520.0,7.46331167]
[1763418792672,0.99345073,92521.0,92520.0,7.46331167]
[1763418793989,0.95924073,92521.0,92520.0,7.46331167]
[1763418794199,0.99345073,92521.0,92520.0,7.46331167]
[1763418794870,0.95924073,92521.0,92520.0,7.46331167]
[1763418795087,0.92503073,92521.0,92520.0,7.46331167]
[1763418795643,0.92503073,92521.0,92520.0,7.52524167]
[1763418795812,0.91487547,92521.0,92520.0,7.49053167]
[1763418796014,0.92503378,92521.0,92520.0,7.49053167]
[1763418796619,0.91487547,92521.0,92520.0,7.49053167]
[1763418796861,0.92503436,92521.0,92520.0,7.49053167]
[1763418797011,0.92503436,92521.0,92520.0,7.52524167]
[1763418797218,0.92503436,92521.0,92520.0,7.57934167]
[1763418797673,0.91487547,92521.0,92520.0,7.57934167]
[1763418799613,0.91487547,92521.0,92520.0,7.58034167]
[1763418804899,0.02587277,92521.0,92520.0,7.58034167]
[1763418805101,0.00566552,92521.0,92520.0,7.58034167]
[1763418807835,0.00566552,92521.0,92520.0,7.58134167]
[1763418834375,0.02601583,92521.0,92520.0,7.58134167]
[1763418836047,0.00566552,92521.0,92520.0,7.58134167]
[1763418837913,0.709377,92539.0,92532.0,0.02217]
[1763418838076,0.709377,92539.0,92538.0,0.05842]
[1763418838280,0.73990452,92539.0,92538.0,0.05842]
[1763418838482,0.75410751,92539.0,92538.0,0.10891]
[1763418838699,0.79232732,92539.0,92538.0,0.10891]
[1763418839101,0.79232732,92539.0,92538.0,0.10934878]
[1763418842514,0.79232732,92539.0,92538.0,0.02552878]
[1763418842711,0.81750732,92539.0,92538.0,0.00043878]
[1763418842916,0.88610606,92539.0,92538.0,0.00043878]
[1763418843110,0.91408511,92539.0,92538.0,0.00043878]
[1763418845960,0.88890511,92539.0,92538.0,0.00043878]
[1763418846567,0.91408511,92539.0,92538.0,0.00043878]
[1763418848139,0.94339431,92539.0,92538.0,0.00043878]
[1763418848337,0.91408511,92539.0,92538.0,0.00043878]
[1763418849294,0.91508511,92539.0,92538.0,0.00043878]
[1763418850367,0.91608511,92539.0,92538.0,0.00043878]
[1763418851739,0.70574811,92539.0,92538.0,0.00043878]
[1763418857151,0.65538811,92539.0,92538.0,0.00043878]
[1763418857360,0.62740906,92539.0,92538.0,0.00043878]
[1763418857821,0.62740906,92539.0,92538.0,0.03157878]
[1763418858020,0.432425,92539.0,92538.0,0.03157878]
[1763418858217,0.46400378,92539.0,92538.0,0.00043878]
[1763418858419,0.4696693,92539.0,92538.0,0.00043878]
[1763418859466,0.4706693,92539.0,92538.0,0.00043878]
[1763418859867,0.4696693,92539.0,92538.0,0.00043878]
[1763418860545,0.48415577,92539.0,92538.0,0.00043878]
[1763418860751,0.48415577,92539.0,92538.0,0.03066878]
[1763418860953,0.48415577,92539.0,92538.0,0.07615878]
[1763418861308,0.48415577,92539.0,92538.0,0.03066878]
[1763418862443,0.48415577,92539.0,92538.0,0.08614466]